fUSD/lending_fUSD_20241225
["ID","MTS","AMOUNT","RATE_DAILY","PERIOD"]
[346650531,1735151463623,-568.94,0.0001199,2]
[346650532,1735151463633,-1406.42763344,0.00013,2]
[346650533,1735151463645,-5272.452286,0.00013,2]
[346650534,1735151463657,-19563.05503858,0.00013,2]
[346650535,1735151463668,-12165.44313694,0.00013,2]
[346650536,1735151463694,-500.0,0.00011989,2]
[346650537,1735151463704,-23853.98229285,0.00013,2]
[346650538,1735151463716,-1091.88000006,0.00013,2]
[346650539,1735151463728,-2302.42204229,0.00013,2]
[346650540,1735151463777,-568.94,0.00012264,2]
[346650541,1735151463787,-500.0,0.00012538,2]
[346650542,1735151463797,-500.0,0.00012811,2]
[346650543,1735151463807,-159.83262585,0.00013,2]
[346650544,1735151463818,-1925.36,0.00013,2]
[346650545,1735151463829,-9081.0,0.00013,2]
[346650546,1735151463841,-36147.6469424,0.00013,2]
[346650547,1735151463852,-6961.11466691,0.00013,2]
[346650548,1735151463864,-422.25836631,0.00013,2]
[346650549,1735151464334,-304.52999997,0.00011989,2]
[346650550,1735151464347,-195.47000003,0.00011989,2]
[346650551,1735151464357,-500.0,0.00011989,2]
[346650552,1735151464368,-500.0,0.0001199,2]
[346650553,1735151464378,-1087.13,0.00012116,2]
[346650554,1735151464389,-500.0,0.00012263,2]
[346650555,1735151464400,-624.19,0.00012263,2]
[346650556,1735151464410,-460.13,0.00012263,2]
[346650557,1735151464421,-500.0,0.00012264,2]
[346650558,1735151464431,-500.0,0.00012264,2]
[346650559,1735151464442,-500.0,0.00012264,2]
[346650560,1735151464452,-568.94,0.00012538,2]
[346650561,1735151464461,-500.0,0.00012538,2]
[346650562,1735151464471,-402.73387447,0.00012538,2]
[346650563,1735151464482,-568.94,0.00012812,2]
[346650564,1735151464492,-500.0,0.00012812,2]
[346650565,1735151464502,-11089.9661255,0.00013,2]
[346650566,1735151464529,-32721.15975101,0.00013,2]
[346650567,1735151464543,-519.51521745,0.00013,2]
[346650568,1735151464554,-8114.01232169,0.00013,2]
[346650569,1735151464568,-741.65,0.00013,2]
[346650570,1735151464593,-500.0,0.00012264,2]
[346650571,1735151464602,-21696.46430303,0.00013,2]
[346650572,1735151464612,-466.94662104,0.00013,2]
[346650573,1735151464621,-598876.80999244,0.00013,2]
[346650574,1735151464639,-973.5000007,0.00013,2]
[346650575,1735151464650,-1374.4,0.00013,2]
[346650576,1735151464661,-1575.5,0.00013,2]
[346650577,1735151464672,-427519.8257296,0.00013,2]
[346650578,1735151464684,-425.73802,0.00013,2]
[346650579,1735151464877,-500.0,0.00011989,2]
[346650580,1735151464887,-500.0,0.00012538,2]
[346650581,1735151464898,-163.23,0.00012623,2]
[346650582,1735151464907,-176986.769999,0.00013,2]
[346650583,1735151464923,-1000.93842479,0.00013,2]
[346650584,1735151464935,-404.880005,0.00013,2]
[346650585,1735151464954,-355.64622195,0.00013,2]
[346650586,1735151464965,-6247.3677665,0.00013,2]
[346650587,1735151464976,-288216.32481269,0.00013,2]
[346650588,1735151464987,-780.60377805,0.00013,2]
[346650589,1735151464997,-3282.40982692,0.00013,2]
[346650590,1735151465008,-1947.7999999,0.00013,2]
[346650591,1735151465019,-5952.75510833,0.00013,2]
[346650592,1735151465030,-3949.3,0.00013,2]
[346650593,1735151653025,3000.0,0.00025002,120]
[346650594,1735152185059,-30000.0,0.00019,60]
[346650597,1735152232659,-30000.0,0.00019,60]
[346650598,1735152245444,-13192.12302458,0.00019,60]
[346650599,1735152245551,-3615.75395084,0.00019,60]
[346650607,1735152406100,-573.65,9.275e-05,2]
[346650608,1735152406122,-161.82,0.00010966,2]
[346650609,1735152406145,-250.0,0.00010984,2]
[346650610,1735152406166,-250.0,0.00011015,2]
[346650611,1735152406187,-181.16092209,0.00011051,2]
[346650612,1735152406208,-1000.0,0.00011066,2]
[346650613,1735152406230,-344.08,0.00011151,2]
[346650614,1735152406254,-1172.55264651,0.00011222,2]
[346650630,1735152632418,-294.0,0.00010883,2]
[346650632,1735152632527,-11.05,0.00010883,2]
[346650633,1735152632537,-300.0,0.00010999,2]
[346650634,1735152632547,-784.19598585,0.00011,2]
[346650635,1735152632559,-451.752963,0.00011,2]
[346650636,1735152632645,-18298.33282246,0.00011,2]
[346650637,1735152632654,-150.0,0.00011078,2]
[346650638,1735152632664,-203.41,0.00011079,2]
[346650639,1735152632674,-203.59,0.00011079,2]
[346650640,1735152632684,-200.93,0.00011079,2]
[346650641,1735152632693,-202.0,0.0001108,2]
[346650642,1735152632703,-250.0,0.00011081,2]
[346650643,1735152632712,-200.55,0.00011081,2]
[346650644,1735152632722,-203.86,0.00011222,2]
[346650645,1735152632731,-200.21,0.00011222,2]
[346650646,1735152632741,-2412.88735349,0.00011222,2]
[346650647,1735152632750,-200.23,0.00011292,2]
[346650652,1735152633021,-200.61,0.00011292,2]
[346650654,1735152633032,-203.98,0.00011292,2]
[346650656,1735152633042,-750.25,0.00011292,2]
[346650658,1735152633052,-573.65,0.00011539,2]
[346650660,1735152633061,-200.49,0.00011645,2]
[346650662,1735152633071,-201.68,0.00011728,2]
[346650664,1735152633081,-199.7534,0.00011889,2]
[346650666,1735152633091,-41372.5331,0.00011889,2]
[346650667,1735152633100,-5000.0,0.00011889,2]
[346650669,1735152633109,-202.99,0.00011889,2]
[346650671,1735152633119,-200.2,0.00011889,2]
[346650673,1735152633128,-200.63,0.00011889,2]
[346650675,1735152633138,-203.97,0.0001189,2]
[346650677,1735152633147,-729.027,0.0001189,2]
[346650679,1735152633157,-201.59,0.00011891,2]
[346650681,1735152633168,-988.4172,0.00011891,2]
[346650683,1735152633178,-200.88,0.00011891,2]
[346650685,1735152633189,-203.1,0.00011891,2]
[346650687,1735152633199,-200.85,0.00011892,2]
[346650688,1735152633209,-1300.0,0.00011972,2]
[346650690,1735152633219,-500.0,0.00011972,2]
[346650692,1735152633229,-1403.06520915,0.00011988,2]
[346650694,1735152633239,-500.0,0.00011988,2]
[346650696,1735152633248,-500.0,0.00011988,2]
[346650698,1735152633257,-500.0,0.00011988,2]
[346650700,1735152633267,-500.0,0.00011988,2]
[346650702,1735152633277,-500.0,0.00011988,2]
[346650704,1735152633286,-500.0,0.00011988,2]
[346650706,1735152633296,-500.0,0.00011988,2]
[346650708,1735152633306,-500.0,0.00011988,2]
[346650710,1735152633316,-500.0,0.00011988,2]
[346650712,1735152633326,-500.0,0.00011988,2]
[346650714,1735152633335,-500.0,0.00011988,2]
[346650716,1735152633344,-500.0,0.00011988,2]
[346650717,1735152633354,-500.0,0.00011988,2]
[346650718,1735152633364,-500.0,0.00011988,2]
[346650719,1735152633374,-500.0,0.00011988,2]
[346650720,1735152633384,-500.0,0.00011988,2]
[346650721,1735152633394,-571.56266673,0.00011988,2]
[346650722,1735152633404,-500.0,0.00011988,2]
[346650723,1735152633414,-500.0,0.00011988,2]
[346650724,1735152633428,-500.0,0.00011988,2]
[346650725,1735152633437,-1432.32,0.00011988,2]
[346650726,1735152633446,-500.0,0.00011988,2]
[346650727,1735152633455,-500.0,0.00011988,2]
[346650728,1735152633465,-500.0,0.00011988,2]
[346650729,1735152633474,-500.0,0.00011988,2]
[346650730,1735152633483,-500.0,0.00011988,2]
[346650731,1735152633492,-500.0,0.00011988,2]
[346650732,1735152633501,-500.0,0.00011988,2]
[346650733,1735152633510,-500.0,0.00011988,2]
[346650734,1735152633520,-500.0,0.00011988,2]
[346650735,1735152633530,-500.0,0.00011988,2]
[346650736,1735152633539,-500.0,0.00011988,2]
[346650737,1735152633549,-1168.37,0.00011988,2]
[346650738,1735152633558,-500.0,0.00011988,2]
[346650739,1735152633567,-500.0,0.00011988,2]
[346650740,1735152633579,-500.0,0.00011988,2]
[346650741,1735152633588,-500.0,0.00011988,2]
[346650742,1735152633598,-500.0,0.00011988,2]
[346650743,1735152633607,-500.0,0.00011988,2]
[346650744,1735152633616,-500.0,0.00011988,2]
[346650745,1735152633625,-500.0,0.00011988,2]
[346650746,1735152633635,-500.0,0.00011988,2]
[346650747,1735152633645,-500.0,0.00011988,2]
[346650748,1735152633654,-1375.88,0.00011988,2]
[346650749,1735152633664,-500.0,0.00011988,2]
[346650750,1735152633673,-500.0,0.00011988,2]
[346650751,1735152633683,-500.0,0.00011988,2]
[346650752,1735152633692,-529.16558149,0.00011988,2]
[346650753,1735152633701,-500.0,0.00011988,2]
[346650754,1735152633710,-500.0,0.00011988,2]
[346650755,1735152633720,-500.0,0.00011988,2]
[346650756,1735152633729,-3620.6,0.00011988,2]
[346650757,1735152633738,-500.0,0.00011988,2]
[346650758,1735152633747,-500.0,0.00011988,2]
[346650759,1735152633757,-3228.23,0.00011988,2]
[346650760,1735152633769,-500.0,0.00011988,2]
[346650761,1735152633778,-500.0,0.00011988,2]
[346650762,1735152633788,-500.0,0.00011988,2]
[346650763,1735152633797,-500.0,0.00011988,2]
[346650764,1735152633807,-500.0,0.00011988,2]
[346650765,1735152633817,-500.0,0.00011988,2]
[346650766,1735152633826,-500.0,0.00011988,2]
[346650767,1735152633836,-613.5,0.00011988,2]
[346650768,1735152633848,-500.0,0.00011988,2]
[346650769,1735152633857,-500.0,0.00011988,2]
[346650770,1735152633867,-500.0,0.00011988,2]
[346650771,1735152633877,-500.0,0.00011988,2]
[346650772,1735152633888,-500.0,0.00011988,2]
[346650773,1735152633897,-500.0,0.00011988,2]
[346650774,1735152633907,-500.0,0.00011988,2]
[346650775,1735152633916,-500.0,0.00011988,2]
[346650776,1735152633928,-500.0,0.00011988,2]
[346650777,1735152633938,-500.0,0.00011988,2]
[346650778,1735152633947,-500.0,0.00011988,2]
[346650779,1735152633957,-500.0,0.00011988,2]
[346650780,1735152633966,-500.0,0.00011988,2]
[346650781,1735152633975,-507.25,0.00011988,2]
[346650782,1735152633985,-500.0,0.00011988,2]
[346650783,1735152633994,-500.0,0.00011988,2]
[346650784,1735152634004,-500.0,0.00011988,2]
[346650785,1735152634013,-500.0,0.00011988,2]
[346650786,1735152634023,-706.35,0.00011988,2]
[346650787,1735152634032,-500.0,0.00011988,2]
[346650788,1735152634041,-500.0,0.00011988,2]
[346650789,1735152634051,-515.49141573,0.00011988,2]
[346650790,1735152634061,-500.0,0.00011988,2]
[346650791,1735152634070,-500.0,0.00011988,2]
[346650792,1735152634079,-195.49036097,0.00011988,2]
[346650793,1735152634088,-500.0,0.00011988,2]
[346650794,1735152634098,-755.98,0.00011988,2]
[346650795,1735152634108,-154.072404,0.00011988,2]
[346650796,1735152634117,-155.940262,0.00011988,2]
[346650797,1735152634127,-871.73,0.00011988,2]
[346650798,1735152634136,-500.0,0.00011988,2]
[346650799,1735152634145,-500.0,0.00011988,2]
[346650800,1735152634154,-500.0,0.00011988,2]
[346650801,1735152634165,-532.151305,0.00011988,2]
[346650802,1735152634174,-500.0,0.00011988,2]
[346650803,1735152634184,-639.728388,0.00011988,2]
[346650804,1735152634193,-2012.26,0.00011988,2]
[346650805,1735152634202,-500.0,0.00011988,2]
[346650806,1735152634211,-500.0,0.00011988,2]
[346650807,1735152634221,-500.0,0.00011988,2]
[346650808,1735152634230,-500.0,0.00011988,2]
[346650809,1735152634240,-500.0,0.00011988,2]
[346650810,1735152634250,-500.0,0.00011988,2]
[346650811,1735152634259,-500.0,0.00011988,2]
[346650812,1735152634268,-500.0,0.00011988,2]
[346650813,1735152634277,-916.39,0.00011988,2]
[346650814,1735152634286,-500.0,0.00011988,2]
[346650815,1735152634296,-1025.66,0.00011988,2]
[346650816,1735152634305,-500.0,0.00011988,2]
[346650817,1735152634315,-500.0,0.00011988,2]
[346650818,1735152634325,-500.0,0.00011988,2]
[346650819,1735152634334,-500.0,0.00011988,2]
[346650820,1735152634344,-676.55,0.00011988,2]
[346650821,1735152634354,-500.0,0.00011988,2]
[346650822,1735152634363,-500.0,0.00011988,2]
[346650823,1735152634372,-3289.87,0.00011988,2]
[346650824,1735152634381,-500.0,0.00011988,2]
[346650825,1735152634390,-793.81,0.00011988,2]
[346650826,1735152634400,-500.0,0.00011988,2]
[346650827,1735152634410,-500.0,0.00011988,2]
[346650828,1735152634420,-551.46,0.00011988,2]
[346650829,1735152634430,-500.0,0.00011988,2]
[346650830,1735152634440,-620.82,0.00011988,2]
[346650831,1735152634450,-500.0,0.00011988,2]
[346650832,1735152634459,-500.0,0.00011988,2]
[346650833,1735152634468,-500.0,0.00011988,2]
[346650834,1735152634477,-500.0,0.00011988,2]
[346650835,1735152634486,-501.13,0.00011988,2]
[346650836,1735152634495,-500.0,0.00011988,2]
[346650837,1735152634504,-500.0,0.00011988,2]
[346650838,1735152634514,-699.17,0.00011988,2]
[346650839,1735152634523,-500.0,0.00011988,2]
[346650840,1735152634532,-500.0,0.00011988,2]
[346650841,1735152634541,-500.0,0.00011988,2]
[346650842,1735152634550,-1253.98,0.00011988,2]
[346650843,1735152634559,-3129.93,0.00011988,2]
[346650844,1735152634569,-500.0,0.00011988,2]
[346650845,1735152634578,-1318.37,0.00011988,2]
[346650846,1735152634587,-500.0,0.00011988,2]
[346650847,1735152634596,-1179.69,0.00011988,2]
[346650848,1735152634605,-500.0,0.00011988,2]
[346650849,1735152634614,-500.0,0.00011988,2]
[346650850,1735152634623,-500.0,0.00011988,2]
[346650851,1735152634632,-500.0,0.00011988,2]
[346650852,1735152634641,-2333.11,0.00011988,2]
[346650853,1735152634650,-500.0,0.00011988,2]
[346650854,1735152634659,-500.0,0.00011988,2]
[346650855,1735152634668,-500.0,0.00011988,2]
[346650856,1735152634678,-500.0,0.00011988,2]
[346650857,1735152634687,-1999.85,0.00011988,2]
[346650858,1735152634696,-500.0,0.00011988,2]
[346650859,1735152634706,-500.0,0.00011988,2]
[346650860,1735152634715,-500.0,0.00011988,2]
[346650861,1735152634723,-500.0,0.00011988,2]
[346650862,1735152634732,-500.0,0.00011988,2]
[346650863,1735152634741,-500.0,0.00011988,2]
[346650864,1735152634750,-1151.01,0.00011988,2]
[346650865,1735152634759,-5508.36,0.00011988,2]
[346650866,1735152634768,-500.0,0.00011988,2]
[346650867,1735152634777,-663.7,0.00011988,2]
[346650868,1735152634786,-500.0,0.00011988,2]
[346650869,1735152634795,-987.36,0.00011988,2]
[346650870,1735152634804,-500.0,0.00011988,2]
[346650871,1735152634813,-500.0,0.00011988,2]
[346650872,1735152634823,-500.0,0.00011988,2]
[346650873,1735152634833,-500.0,0.00011988,2]
[346650874,1735152634844,-500.0,0.00011988,2]
[346650875,1735152634854,-1043.04,0.00011988,2]
[346650876,1735152634863,-500.0,0.00011988,2]
[346650877,1735152634875,-1475.69,0.00011988,2]
[346650878,1735152634884,-1201.61,0.00011988,2]
[346650879,1735152634895,-500.0,0.00011988,2]
[346650880,1735152634904,-500.0,0.00011988,2]
[346650881,1735152634913,-500.0,0.00011988,2]
[346650882,1735152634924,-500.0,0.00011988,2]
[346650883,1735152634933,-500.0,0.00011988,2]
[346650884,1735152634942,-500.0,0.00011988,2]
[346650885,1735152634951,-500.0,0.00011988,2]
[346650886,1735152634961,-2122.77,0.00011988,2]
[346650887,1735152634970,-5090.25,0.00011988,2]
[346650888,1735152634980,-2128.39,0.00011988,2]
[346650889,1735152634989,-500.0,0.00011988,2]
[346650890,1735152634998,-500.0,0.00011988,2]
[346650891,1735152635007,-500.0,0.00011988,2]
[346650892,1735152635016,-500.0,0.00011988,2]
[346650893,1735152635025,-500.0,0.00011988,2]
[346650894,1735152635035,-1013.74,0.00011988,2]
[346650895,1735152635044,-500.0,0.00011988,2]
[346650896,1735152635053,-500.0,0.00011988,2]
[346650897,1735152635063,-500.0,0.00011988,2]
[346650898,1735152635075,-500.0,0.00011988,2]
[346650899,1735152635085,-500.0,0.00011988,2]
[346650900,1735152635094,-444.30236023,0.00011988,2]
[346650901,1735152635105,-500.0,0.00011988,2]
[346650902,1735152635114,-500.0,0.00011988,2]
[346650903,1735152635124,-580.76,0.00011988,2]
[346650904,1735152635133,-1863.22,0.00011988,2]
[346650905,1735152635143,-500.0,0.00011988,2]
[346650906,1735152635152,-500.0,0.00011988,2]
[346650907,1735152635162,-500.0,0.00011988,2]
[346650908,1735152635171,-504.02,0.00011988,2]
[346650909,1735152635181,-500.0,0.00011988,2]
[346650910,1735152635190,-5066.67,0.00011988,2]
[346650911,1735152635200,-500.0,0.00011988,2]
[346650912,1735152635209,-500.0,0.00011988,2]
[346650913,1735152635218,-500.0,0.00011988,2]
[346650914,1735152635227,-500.0,0.00011988,2]
[346650915,1735152635237,-500.0,0.00011988,2]
[346650916,1735152635246,-500.0,0.00011988,2]
[346650917,1735152635255,-721.44,0.00011988,2]
[346650918,1735152635265,-500.0,0.00011988,2]
[346650919,1735152635274,-500.0,0.00011988,2]
[346650920,1735152635283,-500.0,0.00011988,2]
[346650921,1735152635292,-500.0,0.00011988,2]
[346650922,1735152635301,-630.10359545,0.00011988,2]
[346650923,1735152635310,-500.0,0.00011988,2]
[346650924,1735152635320,-544.96,0.00011988,2]
[346650925,1735152635329,-500.0,0.00011988,2]
[346650926,1735152635339,-500.0,0.00011988,2]
[346650927,1735152635348,-500.0,0.00011988,2]
[346650928,1735152635357,-801.62,0.00011988,2]
[346650929,1735152635367,-500.0,0.00011988,2]
[346650930,1735152635377,-500.0,0.00011988,2]
[346650931,1735152635386,-500.0,0.00011988,2]
[346650932,1735152635395,-500.0,0.00011988,2]
[346650933,1735152635405,-1522.74,0.00011988,2]
[346650934,1735152635415,-500.0,0.00011988,2]
[346650935,1735152635425,-500.0,0.00011989,2]
[346650936,1735152635435,-620.18,0.00011989,2]
[346650937,1735152635444,-500.0,0.00011989,2]
[346650938,1735152635454,-500.0,0.00011989,2]
[346650939,1735152635463,-500.0,0.00011989,2]
[346650940,1735152635473,-500.0,0.00011989,2]
[346650941,1735152635482,-500.0,0.00011989,2]
[346650942,1735152635491,-500.0,0.00011989,2]
[346650943,1735152635500,-578.67,0.00011989,2]
[346650944,1735152635510,-500.0,0.00011989,2]
[346650945,1735152635519,-500.0,0.00011989,2]
[346650946,1735152635529,-500.0,0.00011989,2]
[346650947,1735152635538,-500.0,0.00011989,2]
[346650948,1735152635548,-500.0,0.00011989,2]
[346650949,1735152635558,-606.93,0.00011989,2]
[346650950,1735152635567,-500.0,0.00011989,2]
[346650951,1735152635577,-500.0,0.00011989,2]
[346650952,1735152635587,-500.0,0.00011989,2]
[346650953,1735152635597,-500.0,0.00011989,2]
[346650954,1735152635606,-163.19675041,0.00011989,2]
[346650955,1735152635616,-500.0,0.00011989,2]
[346650956,1735152635626,-627.09,0.00011989,2]
[346650957,1735152635635,-500.0,0.00011989,2]
[346650958,1735152635645,-500.0,0.00011989,2]
[346650959,1735152635654,-500.0,0.00011989,2]
[346650960,1735152635664,-500.0,0.00011989,2]
[346650961,1735152635673,-500.0,0.00011989,2]
[346650962,1735152635683,-500.0,0.00011989,2]
[346650963,1735152635692,-509.07068706,0.00011989,2]
[346650964,1735152635701,-500.0,0.00011989,2]
[346650965,1735152635711,-500.0,0.00011989,2]
[346650966,1735152635721,-507.46,0.00011989,2]
[346650967,1735152635730,-500.0,0.00011989,2]
[346650968,1735152635740,-500.0,0.00011989,2]
[346650969,1735152635749,-500.0,0.00011989,2]
[346650970,1735152635759,-510.47,0.00011989,2]
[346650971,1735152635768,-500.0,0.00011989,2]
[346650972,1735152635778,-500.0,0.00011989,2]
[346650973,1735152635787,-500.0,0.00011989,2]
[346650974,1735152635798,-500.0,0.00011989,2]
[346650975,1735152635807,-500.0,0.00011989,2]
[346650976,1735152635816,-500.0,0.00011989,2]
[346650977,1735152635826,-500.0,0.00011989,2]
[346650978,1735152635835,-500.0,0.00011989,2]
[346650979,1735152635845,-500.0,0.00011989,2]
[346650980,1735152635855,-500.0,0.00011989,2]
[346650981,1735152635865,-500.0,0.00011989,2]
[346650982,1735152635874,-500.0,0.00011989,2]
[346650983,1735152635883,-500.0,0.00011989,2]
[346650984,1735152635894,-500.0,0.00011989,2]
[346650985,1735152635903,-500.0,0.00011989,2]
[346650986,1735152635913,-629.64,0.00011989,2]
[346650987,1735152635925,-500.0,0.00011989,2]
[346650988,1735152635934,-500.0,0.00011989,2]
[346650989,1735152635944,-531.16,0.00011989,2]
[346650990,1735152635953,-500.0,0.00011989,2]
[346650991,1735152635962,-500.0,0.00011989,2]
[346650992,1735152635971,-500.0,0.00011989,2]
[346650993,1735152635980,-544.24391995,0.00011989,2]
[346650994,1735152635990,-500.0,0.00011989,2]
[346650995,1735152635999,-500.0,0.00011989,2]
[346650996,1735152636009,-500.0,0.00011989,2]
[346650997,1735152636019,-500.0,0.00011989,2]
[346650998,1735152636028,-410.76095281,0.00011989,2]
[346650999,1735152636038,-500.0,0.00011989,2]
[346651000,1735152636047,-500.0,0.00011989,2]
[346651001,1735152636057,-511.31,0.00011989,2]
[346651002,1735152636066,-500.0,0.00011989,2]
[346651003,1735152636076,-500.0,0.00011989,2]
[346651004,1735152636086,-500.0,0.00011989,2]
[346651005,1735152636096,-500.0,0.00011989,2]
[346651006,1735152636105,-500.0,0.00011989,2]
[346651007,1735152636115,-500.0,0.00011989,2]
[346651008,1735152636124,-508.29,0.00011989,2]
[346651009,1735152636134,-500.0,0.00011989,2]
[346651010,1735152636143,-500.0,0.00011989,2]
[346651011,1735152636152,-635.2,0.00011989,2]
[346651012,1735152636163,-500.0,0.00011989,2]
[346651013,1735152636173,-500.0,0.00011989,2]
[346651014,1735152636182,-500.0,0.00011989,2]
[346651015,1735152636191,-500.0,0.00011989,2]
[346651016,1735152636202,-501.96550579,0.00011989,2]
[346651017,1735152636212,-500.0,0.00011989,2]
[346651018,1735152636221,-500.0,0.00011989,2]
[346651019,1735152636230,-500.0,0.00011989,2]
[346651020,1735152636239,-595.42,0.00011989,2]
[346651021,1735152636249,-500.0,0.00011989,2]
[346651022,1735152636258,-500.0,0.00011989,2]
[346651023,1735152636267,-500.0,0.00011989,2]
[346651024,1735152636276,-500.0,0.00011989,2]
[346651025,1735152636286,-500.0,0.00011989,2]
[346651026,1735152636295,-500.0,0.00011989,2]
[346651027,1735152636305,-563.5,0.00011989,2]
[346651028,1735152636314,-500.0,0.00011989,2]
[346651029,1735152636323,-500.0,0.00011989,2]
[346651030,1735152636334,-500.0,0.00011989,2]
[346651031,1735152636343,-500.0,0.00011989,2]
[346651032,1735152636352,-500.0,0.00011989,2]
[346651033,1735152636362,-502.9786006,0.00011989,2]
[346651034,1735152636371,-500.0,0.00011989,2]
[346651035,1735152636381,-500.0,0.00011989,2]
[346651036,1735152636391,-500.0,0.00011989,2]
[346651037,1735152636400,-500.0,0.00011989,2]
[346651038,1735152636410,-161.24484295,0.00011989,2]
[346651039,1735152636420,-500.0,0.00011989,2]
[346651040,1735152636430,-500.0,0.00011989,2]
[346651041,1735152636439,-500.0,0.00011989,2]
[346651042,1735152636448,-500.0,0.00011989,2]
[346651043,1735152636458,-500.0,0.00011989,2]
[346651044,1735152636467,-500.0,0.00011989,2]
[346651045,1735152636477,-500.0,0.00011989,2]
[346651046,1735152636487,-500.0,0.00011989,2]
[346651047,1735152636496,-500.0,0.00011989,2]
[346651048,1735152636506,-500.0,0.00011989,2]
[346651049,1735152636516,-500.0,0.00011989,2]
[346651050,1735152636525,-500.0,0.00011989,2]
[346651051,1735152636534,-451.75775199,0.00011989,2]
[346651052,1735152636544,-500.0,0.00011989,2]
[346651053,1735152636553,-500.0,0.00011989,2]
[346651054,1735152636563,-500.0,0.00011989,2]
[346651055,1735152636573,-500.0,0.00011989,2]
[346651056,1735152636582,-500.0,0.00011989,2]
[346651057,1735152636591,-500.0,0.00011989,2]
[346651058,1735152636601,-500.0,0.00011989,2]
[346651059,1735152636611,-500.0,0.00011989,2]
[346651060,1735152636621,-500.0,0.00011989,2]
[346651061,1735152636630,-500.0,0.00011989,2]
[346651062,1735152636639,-500.0,0.00011989,2]
[346651063,1735152636649,-500.0,0.00011989,2]
[346651064,1735152636658,-500.0,0.00011989,2]
[346651065,1735152636668,-500.0,0.00011989,2]
[346651066,1735152636677,-500.0,0.00011989,2]
[346651067,1735152636687,-500.0,0.00011989,2]
[346651068,1735152636696,-500.0,0.00011989,2]
[346651069,1735152636707,-500.0,0.00011989,2]
[346651070,1735152636716,-500.0,0.00011989,2]
[346651071,1735152636726,-500.0,0.00011989,2]
[346651072,1735152636735,-500.0,0.00011989,2]
[346651073,1735152636744,-500.0,0.00011989,2]
[346651074,1735152636754,-500.0,0.00011989,2]
[346651075,1735152636764,-238.06,0.00011989,2]
[346651076,1735152636774,-500.0,0.00011989,2]
[346651077,1735152636783,-500.0,0.00011989,2]
[346651078,1735152636793,-255.42850717,0.00011989,2]
[346651079,1735152636803,-500.0,0.00011989,2]
[346651080,1735152636812,-500.0,0.00011989,2]
[346651081,1735152636821,-500.0,0.00011989,2]
[346651082,1735152636831,-315.99207477,0.00011989,2]
[346651083,1735152636840,-500.0,0.00011989,2]
[346651084,1735152636853,-500.0,0.00011989,2]
[346651085,1735152636863,-500.0,0.00011989,2]
[346651086,1735152636873,-500.0,0.00011989,2]
[346651087,1735152636883,-500.0,0.00011989,2]
[346651088,1735152636892,-500.0,0.00011989,2]
[346651089,1735152637088,-500.0,0.00011989,2]
[346651090,1735152637099,-500.0,0.00011989,2]